[Event "GER-ch Youth U12W 2020"]
[Site "Willingen"]
[Date "2020.10.27"]
[Round "1.19"]
[White "Woiteck, Helena"]
[Black "Fock, Madiha"]
[Result "0-1"]
[ECO "D00"]
[WhiteElo "1092"]
[BlackElo "1258"]
[Annotator "NA RC"]
[PlyCount "94"]
[EventDate "2020.10.27"]
[EventType "swiss"]
[EventRounds "7"]
[EventCountry "GER"]
[SourceTitle "playchess.com"]
[Source "ChessBase"]
[SourceQuality "1"]
[TimeControl "40/5400+30:1800+30"]

1. d4 {[%emt 0:00:00]} d5 {[%emt 0:00:00]} 2. Bf4 {[%emt 0:00:00]} c5 {[%emt 0:00:25]} 3. e3 {[%emt 0:00:00]} Nc6 {[%emt 0:01:02]} 4. Nf3 {[%emt 0:00:29]} Nf6 {[%emt 0:01:16]} 5. c4 {[%emt 0:01:35]} e6 {[%emt 0:03:05]} 6. Nc3 {[%emt 0:00:48]} cxd4 {[%emt 0:13:12]} 7. exd4 {[%emt 0:08:21]} Qb6 {[%emt 0:03:33]} 8. Qb3 {[%emt 0:04:44]} Bb4 {[%emt 0:11:22]} 9. c5 {[%emt 0:04:49]} Bxc3+ {[%emt 0:06:25]} 10. Qxc3 {[%emt 0:02:31]} Qb4 {[%emt 0:01:35]} 11. Qxb4 {[%emt 0:04:43]} Nxb4 {[%emt 0:00:12]} 12. Bb5+ {[%emt 0:00:38]} Bd7 {[%emt 0:01:26]} 13. Bxd7+ {[%emt 0:01:21]} Nxd7 {[%emt 0:00:40]} 14. O-O {[%emt 0:00:27]} b6 {[%emt 0:02:03]} 15. a3 {[%emt 0:04:02]} Nc6 {[%emt 0:01:05]} 16. b4 {[%emt 0:01:06]} b5 {[%emt 0:06:18]} 17. Bd6 {[%emt 0:05:20]} f6 {[%emt 0:05:13]} 18. Rfe1 {[%emt 0:02:02]} Kf7 {[%emt 0:02:26]} 19. Rad1 {[%emt 0:07:58]} a5 {[%emt 0:02:44]} 20. Rb1 {[%emt 0:11:21]} axb4 {[%emt 0:01:16]} 21. axb4 {[%emt 0:01:29]} Ra4 {[%emt 0:01:13]} 22. Rb3 {[%emt 0:03:01]} g5 {[%emt 0:05:26]} 23. Nxg5+ {[%emt 0:03:57]} fxg5 {[%emt 0:02:18]} 24. Rf3+ {[%emt 0:00:30]} Kg7 {[%emt 0:01:32]} 25. h3 {[%emt 0:03:24]} Re8 {[%emt 0:02:45]} 26. Rg3 {[%emt 0:02:08]} h6 {[%emt 0:02:28]} 27. Ree3 {[%emt 0:01:37]} Nxd4 {[%emt 0:01:36]} 28. Re5 {[%emt 0:01:56]} Nf5 {[%emt 0:01:21]} 29. Rb3 {[%emt 0:02:27]} Nxd6 {[%emt 0:02:52]} 30. Re1 {[%emt 0:00:52]} Nc4 {[%emt 0:00:45]} 31. c6 {[%emt 0:01:04]} Ndb6 {[%emt 0:00:22]} 32. c7 {[%emt 0:00:41]} e5 {[%emt 0:02:24]} 33. Rd3 {[%emt 0:00:50]} Rxb4 {[%emt 0:01:54]} 34. c8=Q Rxc8 {[%emt 0:00:12]} 35. Rc1 {[%emt 0:01:12]} Kf6 {[%emt 0:01:07]} 36. Rf3+ {[%emt 0:00:37]} Ke6 {[%emt 0:00:19]} 37. Kf1 {[%emt 0:00:22]} Nd2+ {[%emt 0:00:16]} 38. Ke2 {[%emt 0:00:19]} Nxf3 {[%emt 0:00:19]} 39. Rxc8 {[%emt 0:00:38]} Nxc8 {[%emt 0:00:06]} 40. gxf3 {[%emt 0:00:14]} Rc4 {[%emt 0:00:18]} 41. Kd3 {[%emt 0:30:09]} b4 {[%emt 0:30:09]} 42. Kd2 {[%emt 0:00:25]} b3 {[%emt 0:00:06]} 43. Ke1 {[%emt 0:00:09]} b2 {[%emt 0:00:08]} 44. Kf1 {[%emt 0:00:06]} b1=Q+ {[%emt 0:00:11]} 45. Kg2 {[%emt 0:00:11]} Rc1 {[%emt 0:00:28]} 46. f4 {[%emt 0:00:28]} Rg1+ {[%emt 0:00:07]} 47. Kf3 {[%emt 0:00:06]} Qe4# 0-1

[Event "GER-ch Youth U12W 2020"]
[Site "Willingen"]
[Date "2020.10.27"]
[Round "1.20"]
[White "Petrosyan, Ani"]
[Black "Marrufo, Emilia"]
[Result "1-0"]
[ECO "A06"]
[WhiteElo "1370"]
[BlackElo "788"]
[Annotator "NA RC"]
[PlyCount "115"]
[EventDate "2020.10.27"]
[EventType "swiss"]
[EventRounds "7"]
[EventCountry "GER"]
[SourceTitle "playchess.com"]
[Source "ChessBase"]
[SourceQuality "1"]
[TimeControl "40/5400+30:1800+30"]

1. Nf3 {[%emt 0:00:00]} d5 {[%emt 0:00:00]} 2. e3 {[%emt 0:00:00]} Bg4 {[%emt 0:00:19]} 3. c4 {[%emt 0:00:00]} c6 {[%emt 0:00:14]} 4. Nc3 {[%emt 0:00:42]} Nf6 {[%emt 0:00:28]} 5. cxd5 {[%emt 0:00:19]} cxd5 {[%emt 0:00:26]} 6. Qb3 {[%emt 0:00:34]} e6 {[%emt 0:00:25]} 7. Bb5+ {[%emt 0:02:40]} Nc6 {[%emt 0:00:52]} 8. Ne5 {[%emt 0:00:25]} Rc8 {[%emt 0:00:34]} 9. Qa4 {[%emt 0:00:43]} Qd6 {[%emt 0:01:05]} 10. Nxg4 {[%emt 0:01:00]} Nxg4 {[%emt 0:00:30]} 11. Qxg4 {[%emt 0:00:13]} g6 {[%emt 0:00:53]} 12. b3 {[%emt 0:00:27]} Bg7 {[%emt 0:00:35]} 13. Bb2 {[%emt 0:00:36]} O-O {[%emt 0:00:33]} 14. h4 {[%emt 0:01:57]} h5 {[%emt 0:02:00]} 15. Qe2 {[%emt 0:04:16]} d4 {[%emt 0:00:42]} 16. Ne4 {[%emt 0:07:52]} Qd5 {[%emt 0:01:47]} 17. Bxc6 {[%emt 0:09:58]} Rxc6 {[%emt 0:01:03]} 18. Qd3 {[%emt 0:04:25]} dxe3 {[%emt 0:02:25]} 19. Qxd5 {[%emt 0:03:28]} exd5 {[%emt 0:00:12]} 20. Bxg7 {[%emt 0:00:32]} Kxg7 {[%emt 0:00:13]} 21. Nc3 {[%emt 0:00:49]} exd2+ {[%emt 0:00:13]} 22. Kxd2 {[%emt 0:00:07]} Rfc8 {[%emt 0:00:25]} 23. Rac1 {[%emt 0:00:28]} d4 {[%emt 0:00:11]} 24. Nb5 {[%emt 0:00:13]} a6 {[%emt 0:04:01]} 25. Rxc6 {[%emt 0:01:54]} Rxc6 {[%emt 0:01:42]} 26. Nxd4 {[%emt 0:00:05]} Rd6 {[%emt 0:00:22]} 27. Kc3 {[%emt 0:00:05]} b5 {[%emt 0:00:52]} 28. Re1 {[%emt 0:00:07]} b4+ {[%emt 0:00:31]} 29. Kc4 {[%emt 0:00:24]} a5 {[%emt 0:01:38]} 30. Re5 {[%emt 0:01:06]} Ra6 {[%emt 0:00:56]} 31. Kb5 {[%emt 0:01:05]} Rd6 {[%emt 0:00:35]} 32. Kc4 {[%emt 0:00:15]} Ra6 {[%emt 0:00:31]} 33. Nb5 {[%emt 0:00:40]} Rc6+ {[%emt 0:01:06]} 34. Rc5 {[%emt 0:00:05]} Rxc5+ {[%emt 0:00:45]} 35. Kxc5 {[%emt 0:00:07]} Kf6 {[%emt 0:00:14]} 36. Nd4 {[%emt 0:00:49]} Ke5 {[%emt 0:01:07]} 37. g3 {[%emt 0:00:15]} f5 {[%emt 0:00:46]} 38. Nf3+ {[%emt 0:02:27]} Ke4 {[%emt 0:01:17]} 39. Ng5+ {[%emt 0:00:05]} Ke5 40. Kb5 f4 41. Kxa5 fxg3 {[%emt 0:33:28]} 42. fxg3 {[%emt 0:31:11]} Kf5 43. Nf3 Kg4 {[%emt 0:01:38]} 44. Ne5+ {[%emt 0:00:35]} Kxg3 {[%emt 0:00:08]} 45. Nxg6 {[%emt 0:00:06]} Kh3 {[%emt 0:00:29]} 46. Kxb4 {[%emt 0:00:07]} Kg4 {[%emt 0:00:12]} 47. a4 {[%emt 0:00:18]} Kf5 {[%emt 0:00:36]} 48. Ne7+ {[%emt 0:00:43]} Kg4 {[%emt 0:00:26]} 49. Ng8 {[%emt 0:00:02]} Kxh4 50. Nf6 Kg5 51. Nxh5 Kxh5 52. a5 Kg4 {[%emt 0:02:28]} 53. a6 {[%emt 0:01:36]} Kf4 {[%emt 0:00:10]} 54. a7 {[%emt 0:00:05]} Ke3 {[%emt 0:00:10]} 55. a8=Q {[%emt 0:00:10]} Kd2 {[%emt 0:00:26]} 56. Qe4 {[%emt 0:00:06]} Kd1 {[%emt 0:00:19]} 57. Kc3 {[%emt 0:00:12]} Kc1 {[%emt 0:00:31]} 58. Qe1# 1-0

[Event "GER-ch Youth U12W 2020"]
[Site "Willingen"]
[Date "2020.10.28"]
[Round "2.1"]
[White "Braeutigam, Katerina"]
[Black "Reich, Elisabeth"]
[Result "1-0"]
[ECO "B33"]
[WhiteElo "1744"]
[BlackElo "1128"]
[Annotator "NA RC"]
[PlyCount "115"]
[EventDate "2020.10.27"]
[EventType "swiss"]
[EventRounds "7"]
[EventCountry "GER"]
[SourceTitle "playchess.com"]
[Source "ChessBase"]
[SourceQuality "1"]
[TimeControl "40/5400+30:1800+30"]

1. e4 {[%emt 0:00:00]} c5 {[%emt 0:00:00]} 2. Nf3 {[%emt 0:00:00]} Nc6 {[%emt 0:00:00]} 3. d4 {[%emt 0:00:22]} cxd4 {[%emt 0:00:00]} 4. Nxd4 {[%emt 0:00:10]} Nf6 {[%emt 0:00:00]} 5. Nc3 {[%emt 0:00:16]} e6 {[%emt 0:00:07]} 6. Bg5 {[%emt 0:05:00]} h6 {[%emt 0:01:07]} 7. Bh4 {[%emt 0:20:13]} g5 {[%emt 0:03:07]} 8. Bg3 {[%emt 0:01:02]} Bb4 {[%emt 0:01:24]} 9. Ndb5 {[%emt 0:41:22]} e5 {[%emt 0:02:14]} 10. Nd6+ {[%emt 0:03:30]} Ke7 {[%emt 0:02:25]} 11. Nf5+ {[%emt 0:03:05]} Kf8 {[%emt 0:01:02]} 12. Bc4 {[%emt 0:15:00]} d5 {[%emt 0:05:05]} 13. exd5 {[%emt 0:03:36]} Nxd5 {[%emt 0:04:18]} 14. Qxd5 {[%emt 0:01:52]} Qxd5 {[%emt 0:00:17]} 15. Bxd5 {[%emt 0:00:09]} Bxf5 {[%emt 0:00:17]} 16. O-O-O {[%emt 0:01:07]} f6 {[%emt 0:00:30]} 17. Ne4 {[%emt 0:00:44]} Bxe4 {[%emt 0:00:48]} 18. Bxe4 {[%emt 0:00:08]} Rd8 {[%emt 0:01:33]} 19. Bxc6 {[%emt 0:00:27]} Rxd1+ {[%emt 0:00:12]} 20. Rxd1 {[%emt 0:00:05]} bxc6 {[%emt 0:00:10]} 21. Rd7 {[%emt 0:00:08]} a5 {[%emt 0:00:38]} 22. Rc7 {[%emt 0:00:24]} h5 {[%emt 0:00:40]} 23. Rxc6 {[%emt 0:01:28]} Kf7 {[%emt 0:00:38]} 24. h4 {[%emt 0:00:40]} g4 {[%emt 0:01:00]} 25. Ra6 {[%emt 0:00:23]} Rd8 {[%emt 0:01:19]} 26. c3 {[%emt 0:00:10]} Rc8 {[%emt 0:00:09]} 27. Kd2 {[%emt 0:00:29]} Rd8+ {[%emt 0:00:04]} 28. Ke2 {[%emt 0:00:56]} Rb8 {[%emt 0:00:41]} 29. cxb4 {[%emt 0:00:17]} Rxb4 {[%emt 0:00:17]} 30. b3 {[%emt 0:00:37]} Rb5 {[%emt 0:00:12]} 31. Kd3 {[%emt 0:00:53]} Rc5 {[%emt 0:00:15]} 32. a3 {[%emt 0:00:50]} Kg7 {[%emt 0:00:31]} 33. Kd2 {[%emt 0:00:27]} Kf7 {[%emt 0:00:10]} 34. b4 {[%emt 0:00:22]} axb4 {[%emt 0:00:11]} 35. axb4 {[%emt 0:00:04]} Rb5 {[%emt 0:00:08]} 36. Kc3 {[%emt 0:00:16]} Rb8 {[%emt 0:00:41]} 37. Kb3 {[%emt 0:00:52]} Kg7 {[%emt 0:00:12]} 38. Ka4 {[%emt 0:00:12]} Kf7 {[%emt 0:00:06]} 39. b5 {[%emt 0:00:12]} Kg7 {[%emt 0:00:17]} 40. Ka5 {[%emt 0:00:52]} Kf7 {[%emt 0:00:09]} 41. b6 {[%emt 0:30:48]} Kg6 {[%emt 0:30:10]} 42. Bxe5 {[%emt 0:00:58]} fxe5 {[%emt 0:00:12]} 43. b7+ {[%emt 0:00:06]} Kf5 {[%emt 0:00:17]} 44. Kb6 {[%emt 0:00:11]} Ke4 {[%emt 0:00:17]} 45. Ra3 {[%emt 0:00:38]} Kf4 {[%emt 0:00:22]} 46. Kc7 {[%emt 0:00:15]} Rxb7+ {[%emt 0:00:07]} 47. Kxb7 {[%emt 0:00:09]} e4 {[%emt 0:00:04]} 48. Kc6 {[%emt 0:00:16]} Kf5 {[%emt 0:00:33]} 49. Kd5 {[%emt 0:00:13]} Kf4 {[%emt 0:00:14]} 50. Ra6 {[%emt 0:00:42]} g3 {[%emt 0:00:23]} 51. fxg3+ {[%emt 0:00:42]} Kxg3 {[%emt 0:00:08]} 52. Kxe4 {[%emt 0:00:10]} Kxh4 {[%emt 0:00:21]} 53. Ra5 {[%emt 0:02:00]} Kg4 {[%emt 0:00:14]} 54. g3 {[%emt 0:00:09]} h4 {[%emt 0:00:17]} 55. gxh4 {[%emt 0:00:13]} Kxh4 {[%emt 0:00:03]} 56. Kf4 {[%emt 0:00:08]} Kh3 {[%emt 0:00:12]} 57. Ra2 {[%emt 0:00:42]} Kh4 {[%emt 0:00:15]} 58. Rh2# {[%emt 0:00:10]} 1-0

[Event "GER-ch Youth U12W 2020"]
[Site "Willingen"]
[Date "2020.10.28"]
[Round "2.2"]
[White "Fock, Madiha"]
[Black "Trunz, Michelle"]
[Result "1/2-1/2"]
[ECO "B23"]
[WhiteElo "1258"]
[BlackElo "1662"]
[Annotator "NA RC"]
[PlyCount "142"]
[EventDate "2020.10.27"]
[EventType "swiss"]
[EventRounds "7"]
[EventCountry "GER"]
[SourceTitle "playchess.com"]
[Source "ChessBase"]
[SourceQuality "1"]
[TimeControl "40/5400+30:1800+30"]

1. e4 {[%emt 0:00:00]} c5 {[%emt 0:00:00]} 2. Nc3 {[%emt 0:00:00]} d6 {[%emt 0:00:00]} 3. f4 {[%emt 0:00:08]} g6 {[%emt 0:00:33]} 4. Nf3 {[%emt 0:00:45]} Bg7 {[%emt 0:00:16]} 5. Bb5+ {[%emt 0:00:30]} Bd7 {[%emt 0:00:16]} 6. Bc4 {[%emt 0:00:07]} e6 {[%emt 0:00:26]} 7. d3 {[%emt 0:01:43]} Ne7 {[%emt 0:00:22]} 8. O-O {[%emt 0:02:02]} O-O {[%emt 0:00:11]} 9. Qe1 {[%emt 0:07:21]} a6 {[%emt 0:00:13]} 10. f5 {[%emt 0:01:14]} b5 {[%emt 0:06:31]} 11. fxe6 {[%emt 0:07:09]} bxc4 {[%emt 0:02:45]} 12. exd7 {[%emt 0:00:30]} cxd3 {[%emt 0:00:13]} 13. cxd3 {[%emt 0:00:20]} Nxd7 {[%emt 0:00:36]} 14. Bf4 {[%emt 0:04:42]} Ne5 {[%emt 0:01:29]} 15. Qe3 {[%emt 0:06:04]} Ng4 {[%emt 0:01:05]} 16. Qe2 {[%emt 0:01:42]} Nc6 {[%emt 0:03:44]} 17. Nd5 {[%emt 0:02:52]} Nge5 {[%emt 0:06:16]} 18. Be3 {[%emt 0:05:07]} Nxf3+ {[%emt 0:00:48]} 19. Rxf3 {[%emt 0:00:15]} Rb8 {[%emt 0:00:35]} 20. Rb1 {[%emt 0:02:30]} Nb4 {[%emt 0:05:29]} 21. Nxb4 {[%emt 0:03:02]} Rxb4 {[%emt 0:01:57]} 22. b3 {[%emt 0:01:39]} a5 {[%emt 0:01:38]} 23. Qc2 {[%emt 0:05:35]} Qc7 {[%emt 0:02:37]} 24. Bd2 {[%emt 0:01:25]} Rb7 {[%emt 0:00:29]} 25. Bc3 {[%emt 0:02:44]} f6 {[%emt 0:04:12]} 26. Qd2 {[%emt 0:06:07]} Ra7 {[%emt 0:02:47]} 27. Kh1 {[%emt 0:08:17]} a4 {[%emt 0:07:58]} 28. b4 {[%emt 0:01:57]} cxb4 {[%emt 0:00:59]} 29. Bxb4 {[%emt 0:02:23]} Rc8 {[%emt 0:03:32]} 30. Rff1 {[%emt 0:04:27]} Qd7 {[%emt 0:11:20]} 31. a3 {[%emt 0:05:25]} Qe6 {[%emt 0:02:40]} 32. Rfc1 {[%emt 0:02:42]} Rac7 {[%emt 0:02:31]} 33. Rxc7 {[%emt 0:01:44]} Rxc7 {[%emt 0:00:34]} 34. Rc1 {[%emt 0:00:52]} Qc8 {[%emt 0:05:57]} 35. Rxc7 {[%emt 0:01:06]} Qxc7 {[%emt 0:00:12]} 36. Qc3 {[%emt 0:00:42]} Qxc3 {[%emt 0:00:32]} 37. Bxc3 {[%emt 0:00:12]} Kf7 {[%emt 0:00:16]} 38. Kg1 {[%emt 0:00:29]} Ke6 {[%emt 0:00:59]} 39. Kf2 {[%emt 0:00:26]} Bh6 {[%emt 0:01:10]} 40. Ke2 {[%emt 0:02:11]} Bc1 {[%emt 0:00:39]} 41. Bb4 {[%emt 0:30:27]} d5 {[%emt 0:30:51]} 42. Kf3 {[%emt 0:01:08]} d4 {[%emt 0:01:51]} 43. g4 {[%emt 0:03:23]} Ke5 {[%emt 0:01:48]} 44. h3 {[%emt 0:00:20]} g5 {[%emt 0:01:38]} 45. Bf8 {[%emt 0:01:14]} Bb2 {[%emt 0:01:14]} 46. Bb4 {[%emt 0:00:49]} Bc1 {[%emt 0:01:56]} 47. Bf8 {[%emt 0:00:24]} Bd2 {[%emt 0:00:26]} 48. Bc5 {[%emt 0:00:09]} Ba5 {[%emt 0:00:47]} 49. Bf8 {[%emt 0:00:56]} Bb6 {[%emt 0:01:17]} 50. Bb4 {[%emt 0:00:10]} Ke6 {[%emt 0:00:54]} 51. Bf8 {[%emt 0:00:31]} Bc7 {[%emt 0:00:41]} 52. Bc5 {[%emt 0:00:31]} Be5 {[%emt 0:00:09]} 53. Ke2 {[%emt 0:01:52]} Kf7 {[%emt 0:01:08]} 54. Kf3 {[%emt 0:01:22]} Kg6 {[%emt 0:00:17]} 55. Kf2 {[%emt 0:00:07]} h5 {[%emt 0:00:25]} 56. Kf3 {[%emt 0:00:04]} h4 {[%emt 0:00:15]} 57. Kf2 {[%emt 0:00:15]} Kf7 {[%emt 0:00:21]} 58. Bb4 {[%emt 0:00:43]} Ke6 {[%emt 0:00:42]} 59. Bd2 {[%emt 0:00:22]} Bc7 {[%emt 0:02:19]} 60. Bc1 {[%emt 0:00:52]} Bg3+ {[%emt 0:00:52]} 61. Ke2 {[%emt 0:00:19]} Ke5 {[%emt 0:01:22]} 62. Kf1 {[%emt 0:03:17]} Ke6 {[%emt 0:01:22]} 63. Ke2 {[%emt 0:00:18]} Bd6 {[%emt 0:01:18]} 64. Kf3 {[%emt 0:00:12]} Ke5 {[%emt 0:00:25]} 65. Ke2 {[%emt 0:00:19]} Bc7 {[%emt 0:00:17]} 66. Bd2 {[%emt 0:00:37]} Ke6 {[%emt 0:01:36]} 67. Kf3 {[%emt 0:00:16]} Kd7 {[%emt 0:00:41]} 68. Ke2 {[%emt 0:00:42]} Kc6 {[%emt 0:00:08]} 69. Kf3 {[%emt 0:00:38]} Kb5 {[%emt 0:00:20]} 70. Ke2 {[%emt 0:00:15]} Bd6 {[%emt 0:00:28]} 71. Bc1 {[%emt 0:00:07]} Bc5 {[%emt 0:02:15]} 1/2-1/2

[Event "GER-ch Youth U12W 2020"]
[Site "Willingen"]
[Date "2020.10.28"]
[Round "2.3"]
[White "Peglau, Charis"]
[Black "Petrosyan, Ani"]
[Result "1-0"]
[ECO "C10"]
[WhiteElo "1768"]
[BlackElo "1370"]
[Annotator "NA RC"]
[PlyCount "85"]
[EventDate "2020.10.27"]
[EventType "swiss"]
[EventRounds "7"]
[EventCountry "GER"]
[SourceTitle "playchess.com"]
[Source "ChessBase"]
[SourceQuality "1"]
[TimeControl "40/5400+30:1800+30"]

1. d4 e6 {[%emt 0:00:00]} 2. e4 {[%emt 0:00:18]} d5 {[%emt 0:00:00]} 3. Nc3 {[%emt 0:00:25]} dxe4 {[%emt 0:00:57]} 4. Nxe4 {[%emt 0:00:06]} Nd7 {[%emt 0:00:09]} 5. Nf3 {[%emt 0:01:42]} Ngf6 {[%emt 0:00:13]} 6. Bd3 {[%emt 0:00:36]} Nxe4 {[%emt 0:00:26]} 7. Bxe4 {[%emt 0:00:06]} Nf6 {[%emt 0:00:21]} 8. Bd3 {[%emt 0:03:40]} Be7 {[%emt 0:00:20]} 9. c3 b6 {[%emt 0:01:12]} 10. Ne5 {[%emt 0:02:05]} Bd7 {[%emt 0:06:21]} 11. Qf3 {[%emt 0:06:00]} O-O {[%emt 0:01:26]} 12. Bg5 {[%emt 0:06:33]} h6 {[%emt 0:02:18]} 13. Bxf6 {[%emt 0:03:25]} Bxf6 {[%emt 0:00:35]} 14. Qe4 {[%emt 0:00:26]} Re8 {[%emt 0:04:28]} 15. Qh7+ {[%emt 0:27:29]} Kf8 {[%emt 0:02:55]} 16. Be4 {[%emt 0:00:21]} Bxe5 {[%emt 0:14:53]} 17. dxe5 {[%emt 0:07:52]} Bb5 {[%emt 0:03:03]} 18. Rd1 {[%emt 0:03:18]} Qc8 {[%emt 0:03:58]} 19. Qh8+ {[%emt 0:02:38]} Ke7 {[%emt 0:03:06]} 20. Qxg7 {[%emt 0:00:06]} Rg8 {[%emt 0:09:53]} 21. Qf6+ {[%emt 0:00:14]} Ke8 {[%emt 0:00:29]} 22. c4 {[%emt 0:01:57]} Bd7 {[%emt 0:01:07]} 23. Rxd7 {[%emt 0:02:23]} Qxd7 {[%emt 0:02:15]} 24. Bxa8 {[%emt 0:00:23]} c6 {[%emt 0:00:20]} 25. Qf3 {[%emt 0:00:12]} Ke7 {[%emt 0:05:12]} 26. Bxc6 {[%emt 0:00:45]} Qd4 {[%emt 0:00:19]} 27. Qf6+ {[%emt 0:01:07]} Kf8 {[%emt 0:00:10]} 28. Qxh6+ {[%emt 0:00:15]} Ke7 {[%emt 0:00:09]} 29. Qd2 {[%emt 0:01:15]} Qxe5+ {[%emt 0:00:31]} 30. Qe2 {[%emt 0:00:40]} Qc7 {[%emt 0:01:09]} 31. Bf3 {[%emt 0:00:44]} Rd8 {[%emt 0:01:12]} 32. O-O {[%emt 0:01:15]} Rh8 {[%emt 0:00:30]} 33. h3 {[%emt 0:00:16]} Rh4 {[%emt 0:00:31]} 34. Bg4 {[%emt 0:00:46]} Rh8 {[%emt 0:05:17]} 35. Re1 {[%emt 0:00:29]} Qc6 {[%emt 0:00:42]} 36. Qe4 {[%emt 0:00:54]} Qd6 {[%emt 0:03:30]} 37. Qb7+ {[%emt 0:01:26]} Kf6 {[%emt 0:01:06]} 38. Re3 {[%emt 0:01:03]} Kg7 {[%emt 0:01:14]} 39. Rxe6 {[%emt 0:01:21]} Qd4 {[%emt 0:03:04]} 40. Qe4 {[%emt 0:01:15]} Qd8 {[%emt 0:02:02]} 41. Qe5+ {[%emt 0:30:46]} Kh7 {[%emt 0:30:30]} 42. Bf5+ {[%emt 0:00:51]} Kg8 {[%emt 0:00:35]} 43. Re8+ {[%emt 0:00:29]} 1-0

[Event "GER-ch Youth U12W 2020"]
[Site "Willingen"]
[Date "2020.10.28"]
[Round "2.4"]
[White "Cerkez, Lorena"]
[Black "Peglau, Dora"]
[Result "0-1"]
[ECO "B41"]
[WhiteElo "1258"]
[BlackElo "1683"]
[Annotator "NA RC"]
[PlyCount "120"]
[EventDate "2020.10.27"]
[EventType "swiss"]
[EventRounds "7"]
[EventCountry "GER"]
[SourceTitle "playchess.com"]
[Source "ChessBase"]
[SourceQuality "1"]
[TimeControl "40/5400+30:1800+30"]

1. e4 {[%emt 0:00:00]} c5 {[%emt 0:00:00]} 2. Nf3 {[%emt 0:00:00]} e6 {[%emt 0:00:00]} 3. d4 {[%emt 0:06:24]} cxd4 {[%emt 0:00:17]} 4. Nxd4 {[%emt 0:03:05]} a6 {[%emt 0:00:12]} 5. c4 {[%emt 0:07:14]} d6 {[%emt 0:02:03]} 6. Nc3 {[%emt 0:03:30]} Nf6 {[%emt 0:00:38]} 7. Be2 {[%emt 0:15:23]} Be7 {[%emt 0:01:29]} 8. Be3 {[%emt 0:04:25]} Qc7 {[%emt 0:01:38]} 9. Qc2 {[%emt 0:10:57]} b6 {[%emt 0:01:39]} 10. O-O {[%emt 0:07:20]} Bb7 {[%emt 0:01:00]} 11. f3 {[%emt 0:00:41]} Nbd7 {[%emt 0:00:37]} 12. Rac1 {[%emt 0:07:00]} O-O {[%emt 0:01:07]} 13. b3 {[%emt 0:01:50]} Rac8 {[%emt 0:01:03]} 14. Qd1 {[%emt 0:02:28]} Qb8 {[%emt 0:01:17]} 15. Bf2 {[%emt 0:07:30]} Bd8 {[%emt 0:01:29]} 16. Bd3 {[%emt 0:02:01]} Bc7 {[%emt 0:01:07]} 17. f4 {[%emt 0:00:25]} Nc5 {[%emt 0:02:22]} 18. Qe2 {[%emt 0:00:34]} Nxd3 {[%emt 0:02:27]} 19. Qxd3 {[%emt 0:00:09]} d5 {[%emt 0:03:04]} 20. cxd5 {[%emt 0:01:15]} Bxf4 {[%emt 0:03:54]} 21. Bg3 {[%emt 0:00:12]} Bxg3 {[%emt 0:00:33]} 22. hxg3 {[%emt 0:05:22]} exd5 {[%emt 0:01:21]} 23. Nxd5 {[%emt 0:00:38]} Nxd5 {[%emt 0:01:44]} 24. exd5 {[%emt 0:00:49]} Bxd5 {[%emt 0:07:56]} 25. Nf5 {[%emt 0:01:18]} Rxc1 {[%emt 0:01:39]} 26. Rxc1 {[%emt 0:00:46]} Be6 {[%emt 0:07:59]} 27. Ne7+ {[%emt 0:01:20]} Kh8 {[%emt 0:00:09]} 28. Rc3 {[%emt 0:01:41]} Rd8 {[%emt 0:04:01]} 29. Qf3 {[%emt 0:00:52]} Qd6 {[%emt 0:07:12]} 30. Nc6 {[%emt 0:00:59]} Rc8 {[%emt 0:03:05]} 31. Rd3 {[%emt 0:00:31]} Qc5+ {[%emt 0:01:46]} 32. Kh2 {[%emt 0:01:00]} h6 {[%emt 0:07:18]} 33. Rd8+ {[%emt 0:05:02]} Rxd8 {[%emt 0:00:42]} 34. Nxd8 {[%emt 0:00:11]} Bd5 {[%emt 0:01:59]} 35. Nxf7+ {[%emt 0:01:39]} Kg8 {[%emt 0:00:29]} 36. Nxh6+ {[%emt 0:00:51]} gxh6 {[%emt 0:00:07]} 37. Qg4+ {[%emt 0:00:07]} Kh8 {[%emt 0:01:54]} 38. Qh5 {[%emt 0:00:34]} Qc6 {[%emt 0:04:12]} 39. Qe5+ {[%emt 0:00:18]} Kg8 {[%emt 0:00:22]} 40. Qe2 {[%emt 0:00:21]} a5 {[%emt 0:00:35]} 41. Qg4+ {[%emt 0:30:12]} Kf8 {[%emt 0:30:50]} 42. Qf4+ {[%emt 0:00:18]} Ke7 {[%emt 0:00:27]} 43. Qe5+ {[%emt 0:00:10]} Kd7 {[%emt 0:01:37]} 44. Qg7+ {[%emt 0:00:51]} Kc8 {[%emt 0:00:26]} 45. Qf8+ {[%emt 0:00:48]} Kb7 {[%emt 0:00:12]} 46. Qe7+ {[%emt 0:00:29]} Ka6 {[%emt 0:00:58]} 47. Qe2+ {[%emt 0:00:31]} Qb5 {[%emt 0:00:16]} 48. Qc2 {[%emt 0:00:19]} Bb7 {[%emt 0:01:31]} 49. g4 {[%emt 0:01:54]} Qe5+ {[%emt 0:00:51]} 50. g3 {[%emt 0:00:23]} Qe4 {[%emt 0:00:39]} 51. Qxe4 {[%emt 0:01:49]} Bxe4 {[%emt 0:00:02]} 52. Kh3 {[%emt 0:00:10]} Bb1 {[%emt 0:00:26]} 53. a3 {[%emt 0:00:27]} Bc2 {[%emt 0:00:22]} 54. b4 {[%emt 0:00:10]} axb4 {[%emt 0:00:04]} 55. axb4 {[%emt 0:00:08]} Kb5 {[%emt 0:00:06]} 56. Kh4 {[%emt 0:00:01]} Bg6 {[%emt 0:00:40]} 57. g5 {[%emt 0:00:09]} hxg5+ {[%emt 0:00:07]} 58. Kxg5 {[%emt 0:00:09]} Bd3 {[%emt 0:00:11]} 59. Kf4 {[%emt 0:00:13]} Kxb4 {[%emt 0:00:10]} 60. Ke3 {[%emt 0:00:11]} Kc3 {[%emt 0:00:08]} 0-1